[Event "EYCC 2017"]
[Site "Mamaia"]
[Date "2017.09.08"]
[Round "4"]
[White "Goltseva, Ekaterina"]
[Black "Sliwicka, Alicja"]
[Result "1/2-1/2"]
[ECO "A59"]
[WhiteElo "2214"]
[BlackElo "2230"]
[Annotator "NA"]
[PlyCount "104"]
[EventDate "2017.??.??"]
[EventType "swiss"]
[EventCountry "ROU"]
[SourceTitle "playchess.com"]
[Source "ChessBase"]
[SourceQuality "1"]
[TimeControl "40/5400+30:1800+30"]

1. d4 {[%emt 0:00:00]} Nf6 {[%emt 0:00:06]} 2. c4 {[%emt 0:00:00]} c5 {[%emt 0:00:05]} 3. d5 {[%emt 0:00:00]} b5 {[%emt 0:00:06]} 4. cxb5 {[%emt 0:00:00]} a6 {[%emt 0:00:04]} 5. bxa6 {[%emt 0:00:00]} g6 {[%emt 0:00:07]} 6. Nc3 {[%emt 0:00:01]} Bxa6 {[%emt 0:00:07]} 7. e4 {[%emt 0:00:33]} Bxf1 {[%emt 0:00:07]} 8. Kxf1 {[%emt 0:00:05]} d6 {[%emt 0:00:06]} 9. Nf3 {[%emt 0:00:13]} Bg7 {[%emt 0:00:11]} 10. g3 {[%emt 0:00:05]} O-O {[%emt 0:00:09]} 11. Kg2 {[%emt 0:00:06]} Nbd7 {[%emt 0:00:06]} 12. a4 {[%emt 0:00:06]} Ra6 {[%emt 0:00:08]} 13. Qc2 {[%emt 0:01:58]} Qa8 {[%emt 0:00:34]} 14. Rd1 {[%emt 0:05:46]} Qb7 {[%emt 0:07:53]} 15. Ra3 {[%emt 0:06:12]} Rb8 {[%emt 0:02:15]} 16. Nb5 {[%emt 0:10:06]} Ne8 {[%emt 0:08:29]} 17. Bd2 {[%emt 0:12:37]} Nc7 {[%emt 0:15:39]} 18. Nxc7 {[%emt 0:10:00]} Qxc7 {[%emt 0:00:29]} 19. b4 {[%emt 0:00:39]} Qa7 {[%emt 0:04:39]} 20. Rb1 {[%emt 0:00:52]} cxb4 {[%emt 0:01:22]} 21. Rxb4 {[%emt 0:00:49]} Nc5 {[%emt 0:09:35]} 22. a5 {[%emt 0:07:35]} Ra8 {[%emt 0:08:23]} 23. Ne1 {[%emt 0:11:52]} Qc7 {[%emt 0:07:34]} 24. Rc4 {[%emt 0:02:11]} Qd7 {[%emt 0:05:36]} 25. Nd3 {[%emt 0:01:31]} Nxd3 {[%emt 0:00:29]} 26. Rxd3 {[%emt 0:02:25]} R6a7 {[%emt 0:03:33]} 27. Rb3 {[%emt 0:01:16]} h6 {[%emt 0:03:18]} 28. Rb6 {[%emt 0:05:02]} Kh7 {[%emt 0:01:31]} 29. Qb1 {[%emt 0:05:22]} Bf6 {[%emt 0:03:49]} 30. Qd3 {[%emt 0:02:48]} Bg7 {[%emt 0:04:50]} 31. Rcc6 {[%emt 0:00:33]} f5 {[%emt 0:02:42]} 32. exf5 {[%emt 0:02:56]} Qxf5 {[%emt 0:00:05]} 33. Qxf5 {[%emt 0:00:17]} gxf5 {[%emt 0:00:06]} 34. Rc4 {[%emt 0:01:34]} Kg6 {[%emt 0:02:32]} 35. Ra4 {[%emt 0:02:14]} Ra6 {[%emt 0:02:03]} 36. Rb7 {[%emt 0:02:58]} Bf6 {[%emt 0:01:41]} 37. Rc4 {[%emt 0:03:11]} Rxa5 {[%emt 0:01:56]} 38. Bxa5 {[%emt 0:00:40]} Rxa5 {[%emt 0:00:05]} 39. h3 {[%emt 0:03:47]} Rxd5 {[%emt 0:00:33]} 40. Rc2 {[%emt 0:00:00]} Rd3 {[%emt 0:02:38]} 41. Re2 {[%emt 0:03:38]} Kf7 {[%emt 0:02:41]} 42. Rc7 {[%emt 0:03:59]} d5 {[%emt 0:05:15]} 43. f4 {[%emt 0:02:08]} h5 {[%emt 0:02:03]} 44. Rcc2 {[%emt 0:04:21]} d4 {[%emt 0:04:14]} 45. Rf2 {[%emt 0:02:39]} Rb3 {[%emt 0:02:58]} 46. Rce2 {[%emt 0:02:23]} Ra3 {[%emt 0:01:18]} 47. Rf3 {[%emt 0:01:53]} Ra1 {[%emt 0:00:45]} 48. Rd3 {[%emt 0:00:36]} Rb1 {[%emt 0:00:50]} 49. Kf3 {[%emt 0:03:07]} Rf1+ {[%emt 0:02:05]} 50. Rf2 {[%emt 0:01:30]} Rh1 {[%emt 0:00:53]} 51. Rfd2 {[%emt 0:01:12]} Rf1+ {[%emt 0:00:33]} 52. Kg2 {[%emt 0:00:11]} Ra1 {[%emt 0:00:10]} 1/2-1/2

[Event "EYCC 2017"]
[Site "Mamaia"]
[Date "2017.09.08"]
[Round "4"]
[White "Larkin, Vladyslav"]
[Black "Bjerre, Jonas Buhl"]
[Result "0-1"]
[ECO "A05"]
[WhiteElo "2204"]
[BlackElo "2348"]
[Annotator "NA"]
[PlyCount "155"]
[EventDate "2017.??.??"]
[EventType "swiss"]
[EventCountry "ROU"]
[SourceTitle "playchess.com"]
[Source "ChessBase"]
[SourceQuality "1"]
[TimeControl "40/5400+30:1800+30"]

1. Nf3 {[%emt 0:00:00]} Nf6 {[%emt 0:01:00]} 2. b3 {[%emt 0:00:00]} c5 {[%emt 0:00:55]} 3. c4 {[%emt 0:00:02]} e6 {[%emt 0:00:39]} 4. Bb2 {[%emt 0:00:15]} Be7 {[%emt 0:00:16]} 5. g3 {[%emt 0:01:18]} b6 {[%emt 0:00:33]} 6. Bg2 {[%emt 0:00:07]} Bb7 {[%emt 0:00:19]} 7. O-O {[%emt 0:00:23]} O-O {[%emt 0:01:06]} 8. d3 {[%emt 0:03:05]} d5 {[%emt 0:03:30]} 9. cxd5 {[%emt 0:03:20]} Nxd5 {[%emt 0:01:25]} 10. Nbd2 {[%emt 0:04:06]} Nc6 {[%emt 0:01:56]} 11. Nc4 {[%emt 0:04:44]} Qc7 {[%emt 0:03:58]} 12. Rc1 {[%emt 0:00:37]} Rad8 {[%emt 0:01:13]} 13. Qc2 {[%emt 0:06:13]} Qb8 {[%emt 0:02:37]} 14. Qb1 {[%emt 0:00:13]} Bf6 {[%emt 0:06:58]} 15. Ne3 {[%emt 0:10:11]} Bxb2 {[%emt 0:11:10]} 16. Qxb2 {[%emt 0:00:16]} Nxe3 {[%emt 0:00:22]} 17. fxe3 {[%emt 0:00:07]} Ne7 {[%emt 0:00:35]} 18. Rc4 {[%emt 0:07:20]} Nf5 {[%emt 0:09:12]} 19. Qc1 {[%emt 0:00:57]} Nd6 {[%emt 0:09:14]} 20. Rf4 {[%emt 0:07:09]} f6 {[%emt 0:02:45]} 21. Ne1 {[%emt 0:11:42]} e5 {[%emt 0:03:51]} 22. R4f2 {[%emt 0:02:05]} e4 {[%emt 0:02:12]} 23. d4 {[%emt 0:07:12]} Qc8 {[%emt 0:04:56]} 24. Nc2 {[%emt 0:04:59]} c4 {[%emt 0:01:14]} 25. Na3 {[%emt 0:03:55]} cxb3 {[%emt 0:04:06]} 26. axb3 {[%emt 0:03:25]} Qxc1 {[%emt 0:00:11]} 27. Rxc1 {[%emt 0:00:04]} Rc8 {[%emt 0:00:10]} 28. Rff1 {[%emt 0:00:08]} Bd5 {[%emt 0:00:35]} 29. Nc4 {[%emt 0:01:51]} Nxc4 {[%emt 0:07:57]} 30. bxc4 {[%emt 0:00:27]} Bxc4 {[%emt 0:00:07]} 31. Bxe4 {[%emt 0:00:45]} Bxe2 {[%emt 0:00:20]} 32. Bd5+ {[%emt 0:01:15]} Kh8 {[%emt 0:00:09]} 33. Be6 {[%emt 0:03:51]} Rce8 {[%emt 0:01:19]} 34. Rfe1 {[%emt 0:00:07]} Rxe6 {[%emt 0:00:41]} 35. Rxe2 {[%emt 0:00:05]} Re7 {[%emt 0:00:31]} 36. Kf2 {[%emt 0:00:12]} Kg8 {[%emt 0:00:53]} 37. Ra2 {[%emt 0:00:50]} Rb7 {[%emt 0:01:25]} 38. Rca1 {[%emt 0:00:23]} Rff7 {[%emt 0:00:57]} 39. Ke2 {[%emt 0:00:18]} Rfc7 {[%emt 0:00:37]} 40. Kd3 {[%emt 0:00:00]} Kf7 {[%emt 0:00:47]} 41. Rb2 {[%emt 0:05:15]} Ke7 {[%emt 0:02:10]} 42. Rb5 {[%emt 0:01:26]} Ke6 {[%emt 0:04:00]} 43. Rb2 {[%emt 0:01:12]} Kd6 {[%emt 0:01:42]} 44. Rb5 {[%emt 0:01:04]} g6 {[%emt 0:01:26]} 45. Rb2 {[%emt 0:01:44]} f5 {[%emt 0:00:45]} 46. Rb5 {[%emt 0:01:43]} Rc6 {[%emt 0:01:46]} 47. Rb2 {[%emt 0:04:38]} Rbc7 {[%emt 0:02:36]} 48. Rba2 {[%emt 0:05:13]} Rc3+ {[%emt 0:03:27]} 49. Kd2 {[%emt 0:01:22]} Rb3 {[%emt 0:01:17]} 50. Rxa7 {[%emt 0:01:48]} Rb2+ {[%emt 0:00:15]} 51. Kd3 {[%emt 0:00:12]} Rxa7 {[%emt 0:01:09]} 52. Rxa7 {[%emt 0:00:06]} Rxh2 {[%emt 0:00:09]} 53. e4 {[%emt 0:04:25]} fxe4+ {[%emt 0:02:55]} 54. Kxe4 {[%emt 0:00:04]} Re2+ {[%emt 0:00:12]} 55. Kf3 {[%emt 0:00:38]} Re7 {[%emt 0:00:14]} 56. Ra3 {[%emt 0:00:17]} Kd5 {[%emt 0:11:14]} 57. Rb3 {[%emt 0:00:00]} Re6 {[%emt 0:00:22]} 58. Rb4 {[%emt 0:00:27]} h6 {[%emt 0:03:07]} 59. Kf4 {[%emt 0:01:27]} h5 {[%emt 0:02:11]} 60. Kg5 {[%emt 0:02:18]} Ke4 {[%emt 0:01:04]} 61. g4 {[%emt 0:01:28]} hxg4 {[%emt 0:01:00]} 62. Kxg4 {[%emt 0:00:06]} Rd6 {[%emt 0:00:49]} 63. Kg5 {[%emt 0:00:24]} Kd3 {[%emt 0:00:38]} 64. Kh6 {[%emt 0:03:06]} Kc3 {[%emt 0:00:34]} 65. Rb1 {[%emt 0:00:24]} Kxd4 {[%emt 0:00:44]} 66. Rd1+ {[%emt 0:00:04]} Kc5 {[%emt 0:01:18]} 67. Rc1+ {[%emt 0:00:05]} Kb4 {[%emt 0:01:28]} 68. Rb1+ {[%emt 0:00:07]} Kc3 {[%emt 0:00:18]} 69. Kg5 {[%emt 0:00:42]} Rd5+ {[%emt 0:01:08]} 70. Kf4 {[%emt 0:00:15]} b5 {[%emt 0:01:08]} 71. Ke4 {[%emt 0:00:04]} Rd4+ {[%emt 0:02:06]} 72. Ke3 {[%emt 0:00:21]} b4 {[%emt 0:01:40]} 73. Rc1+ {[%emt 0:00:06]} Kb2 {[%emt 0:00:06]} 74. Rc6 {[%emt 0:00:04]} Rg4 {[%emt 0:00:20]} 75. Kd2 {[%emt 0:00:51]} b3 {[%emt 0:00:09]} 76. Kd3 {[%emt 0:00:05]} g5 {[%emt 0:00:14]} 77. Rb6 {[%emt 0:00:16]} Rg3+ {[%emt 0:00:21]} 78. Kd4 0-1

[Event "EYCC 2017"]
[Site "Mamaia"]
[Date "2017.09.08"]
[Round "4"]
[White "Oglaza, Oskar"]
[Black "Spizharny, Mikhail"]
[Result "1-0"]
[ECO "B43"]
[WhiteElo "2198"]
[BlackElo "1972"]
[Annotator "NA"]
[PlyCount "93"]
[EventDate "2017.??.??"]
[EventType "swiss"]
[EventCountry "ROU"]
[SourceTitle "playchess.com"]
[Source "ChessBase"]
[SourceQuality "1"]
[TimeControl "40/5400+30:1800+30"]

1. e4 {[%emt 0:00:00]} c5 {[%emt 0:00:09]} 2. Nf3 {[%emt 0:00:00]} e6 {[%emt 0:00:11]} 3. d4 {[%emt 0:00:00]} cxd4 {[%emt 0:00:08]} 4. Nxd4 {[%emt 0:00:00]} a6 {[%emt 0:00:07]} 5. Nc3 {[%emt 0:00:02]} b5 {[%emt 0:00:09]} 6. g4 {[%emt 0:00:17]} b4 {[%emt 0:05:21]} 7. Nce2 {[%emt 0:01:42]} Bb7 {[%emt 0:00:54]} 8. Bg2 {[%emt 0:00:13]} d5 {[%emt 0:04:31]} 9. e5 {[%emt 0:08:16]} Nd7 {[%emt 0:02:20]} 10. f4 {[%emt 0:03:53]} h5 {[%emt 0:02:53]} 11. gxh5 {[%emt 0:07:06]} Rxh5 {[%emt 0:08:54]} 12. Ng3 {[%emt 0:06:33]} Rh8 {[%emt 0:02:52]} 13. Qe2 {[%emt 0:05:49]} g6 {[%emt 0:04:32]} 14. Bf3 {[%emt 0:04:39]} Bc5 {[%emt 0:07:24]} 15. Be3 {[%emt 0:05:09]} Ne7 {[%emt 0:05:11]} 16. O-O-O {[%emt 0:10:06]} Qc7 {[%emt 0:05:11]} 17. h4 {[%emt 0:01:45]} O-O-O {[%emt 0:04:02]} 18. h5 {[%emt 0:01:08]} gxh5 {[%emt 0:03:03]} 19. Bxh5 {[%emt 0:02:18]} Rhf8 {[%emt 0:03:05]} 20. Rhf1 {[%emt 0:03:10]} Nb6 {[%emt 0:05:27]} 21. Bxf7 {[%emt 0:02:42]} Rxf7 {[%emt 0:00:51]} 22. Nxe6 {[%emt 0:00:03]} Bxe3+ {[%emt 0:00:17]} 23. Qxe3 {[%emt 0:00:08]} Nc4 {[%emt 0:01:05]} 24. Qb3 {[%emt 0:01:19]} Qc6 {[%emt 0:08:18]} 25. Nxd8 {[%emt 0:00:36]} Kxd8 {[%emt 0:00:13]} 26. e6 {[%emt 0:01:58]} Qxe6 {[%emt 0:05:07]} 27. Qxc4 {[%emt 0:01:38]} Qe3+ {[%emt 0:00:15]} 28. Kb1 {[%emt 0:00:03]} Qxg3 {[%emt 0:00:16]} 29. Qxb4 {[%emt 0:00:02]} Nc8 {[%emt 0:01:07]} 30. Qc5 {[%emt 0:04:42]} Qg6 {[%emt 0:01:57]} 31. Rg1 {[%emt 0:01:16]} Qd6 {[%emt 0:01:32]} 32. Rg8+ {[%emt 0:00:06]} Kd7 {[%emt 0:00:16]} 33. Rxc8 {[%emt 0:00:29]} Qxf4 {[%emt 0:02:42]} 34. Rh8 {[%emt 0:00:38]} Qf1 {[%emt 0:01:09]} 35. Rh1 {[%emt 0:00:13]} Qb5 {[%emt 0:00:48]} 36. Qe3 {[%emt 0:00:47]} Re7 {[%emt 0:00:24]} 37. Qg3 {[%emt 0:01:16]} a5 {[%emt 0:00:42]} 38. Rh6 {[%emt 0:00:24]} Qb4 {[%emt 0:00:53]} 39. a3 {[%emt 0:00:35]} Qc5 {[%emt 0:00:14]} 40. Qb8 {[%emt 0:00:00]} Bc8 {[%emt 0:00:41]} 41. Rh5 {[%emt 0:01:32]} Qc4 {[%emt 0:01:37]} 42. Rdxd5+ {[%emt 0:01:29]} Ke8 {[%emt 0:00:24]} 43. Rh8+ {[%emt 0:02:40]} Kf7 {[%emt 0:00:09]} 44. Rh7+ {[%emt 0:00:15]} Kf6 {[%emt 0:00:57]} 45. Qd6+ {[%emt 0:00:14]} Re6 {[%emt 0:00:24]} 46. Qf8+ {[%emt 0:00:08]} Kg6 {[%emt 0:00:13]} 47. Rh6# {[%emt 0:00:11]} 1-0

[Event "EYCC 2017"]
[Site "Mamaia"]
[Date "2017.09.08"]
[Round "4"]
[White "Rozman, Monika"]
[Black "Avetisyan, Mariam"]
[Result "0-1"]
[ECO "B15"]
[WhiteElo "2194"]
[BlackElo "1976"]
[Annotator "NA"]
[PlyCount "78"]
[EventDate "2017.??.??"]
[EventType "swiss"]
[EventCountry "ROU"]
[SourceTitle "playchess.com"]
[Source "ChessBase"]
[SourceQuality "1"]
[TimeControl "40/5400+30:1800+30"]

1. e4 {[%emt 0:00:00]} c6 {[%emt 0:00:05]} 2. d4 {[%emt 0:00:00]} d5 {[%emt 0:00:04]} 3. Nc3 {[%emt 0:00:00]} dxe4 {[%emt 0:00:04]} 4. Nxe4 {[%emt 0:00:00]} Nf6 {[%emt 0:00:04]} 5. Nxf6+ {[%emt 0:00:52]} exf6 {[%emt 0:00:29]} 6. Nf3 {[%emt 0:00:28]} Bd6 {[%emt 0:00:08]} 7. Bd3 {[%emt 0:01:39]} O-O {[%emt 0:02:03]} 8. O-O {[%emt 0:00:34]} Bg4 {[%emt 0:00:04]} 9. h3 {[%emt 0:05:06]} Bh5 {[%emt 0:00:05]} 10. Be3 {[%emt 0:02:06]} Nd7 {[%emt 0:02:44]} 11. c4 {[%emt 0:02:59]} Re8 {[%emt 0:03:36]} 12. Rc1 {[%emt 0:09:06]} Qc7 {[%emt 0:08:37]} 13. Bf5 {[%emt 0:12:30]} Rad8 {[%emt 0:01:52]} 14. Bg4 {[%emt 0:02:00]} Bxg4 {[%emt 0:07:26]} 15. hxg4 {[%emt 0:00:06]} Bf4 {[%emt 0:01:12]} 16. Bd2 {[%emt 0:09:38]} Nf8 {[%emt 0:11:56]} 17. Rc2 {[%emt 0:06:37]} Bxd2 {[%emt 0:03:56]} 18. Qxd2 {[%emt 0:00:49]} Qd7 {[%emt 0:00:12]} 19. Qb4 {[%emt 0:10:52]} Ne6 {[%emt 0:07:18]} 20. Rd2 {[%emt 0:02:49]} Nf4 {[%emt 0:00:50]} 21. Nh2 {[%emt 0:07:56]} Re4 {[%emt 0:08:09]} 22. g3 {[%emt 0:05:28]} Rxd4 {[%emt 0:03:24]} 23. Rxd4 {[%emt 0:01:35]} Ne2+ {[%emt 0:00:05]} 24. Kg2 {[%emt 0:00:20]} Nxd4 {[%emt 0:02:00]} 25. Rd1 {[%emt 0:01:47]} b6 {[%emt 0:02:41]} 26. Qc3 {[%emt 0:03:41]} c5 {[%emt 0:00:15]} 27. Nf3 {[%emt 0:00:58]} Qxg4 {[%emt 0:01:43]} 28. b4 {[%emt 0:00:45]} h5 {[%emt 0:01:53]} 29. bxc5 {[%emt 0:00:25]} bxc5 {[%emt 0:00:03]} 30. Rd3 {[%emt 0:02:07]} Rd7 {[%emt 0:07:58]} 31. Qe1 {[%emt 0:04:46]} Qe6 {[%emt 0:07:32]} 32. Re3 {[%emt 0:02:05]} Qc6 {[%emt 0:03:14]} 33. Rd3 {[%emt 0:02:14]} Rd6 {[%emt 0:06:10]} 34. Qb1 {[%emt 0:00:23]} Qa8 {[%emt 0:01:55]} 35. Kf1 {[%emt 0:03:42]} Nxf3 {[%emt 0:01:45]} 36. Rxf3 {[%emt 0:00:02]} Re6 {[%emt 0:03:01]} 37. Kg2 {[%emt 0:00:54]} g5 {[%emt 0:00:18]} 38. Qf5 {[%emt 0:00:36]} g4 {[%emt 0:00:15]} 39. Kf1 {[%emt 0:00:49]} Qxf3 {[%emt 0:00:13]} 0-1

[Event "EYCC 2017"]
[Site "Mamaia"]
[Date "2017.09.08"]
[Round "4"]
[White "Gorshtein, Ido"]
[Black "Parkhov, Yair"]
[Result "0-1"]
[ECO "A36"]
[WhiteElo "2189"]
[BlackElo "2391"]
[Annotator "NA"]
[PlyCount "74"]
[EventDate "2017.??.??"]
[EventType "swiss"]
[EventCountry "ROU"]
[SourceTitle "playchess.com"]
[Source "ChessBase"]
[SourceQuality "1"]
[TimeControl "40/5400+30:1800+30"]

1. c4 {[%emt 0:00:00]} c5 {[%emt 0:04:15]} 2. Nc3 {[%emt 0:00:00]} g6 {[%emt 0:02:28]} 3. g3 {[%emt 0:00:00]} Bg7 {[%emt 0:00:14]} 4. Bg2 {[%emt 0:00:00]} Nc6 {[%emt 0:00:16]} 5. e3 {[%emt 0:00:29]} e5 {[%emt 0:07:07]} 6. Nge2 {[%emt 0:00:25]} Nge7 {[%emt 0:00:07]} 7. O-O {[%emt 0:00:28]} O-O {[%emt 0:00:55]} 8. a3 {[%emt 0:01:43]} d6 {[%emt 0:02:01]} 9. d3 {[%emt 0:02:01]} a6 {[%emt 0:04:55]} 10. Rb1 {[%emt 0:00:46]} Rb8 {[%emt 0:00:16]} 11. b4 {[%emt 0:02:02]} cxb4 {[%emt 0:04:38]} 12. axb4 {[%emt 0:00:43]} b5 {[%emt 0:00:16]} 13. Nd5 {[%emt 0:03:48]} bxc4 {[%emt 0:08:04]} 14. Nxe7+ {[%emt 0:00:18]} Nxe7 {[%emt 0:00:08]} 15. dxc4 {[%emt 0:00:14]} Be6 {[%emt 0:01:20]} 16. Bd5 {[%emt 0:18:44]} Nxd5 {[%emt 0:03:25]} 17. cxd5 {[%emt 0:00:01]} Bh3 {[%emt 0:03:35]} 18. Re1 {[%emt 0:05:37]} Qc8 {[%emt 0:03:48]} 19. f3 {[%emt 0:01:48]} Bf5 {[%emt 0:17:42]} 20. Rb2 {[%emt 0:02:11]} Qb7 {[%emt 0:07:13]} 21. g4 {[%emt 0:02:55]} Bd7 {[%emt 0:01:23]} 22. Ng3 {[%emt 0:00:18]} Kh8 {[%emt 0:05:29]} 23. Kh1 {[%emt 0:04:23]} Bb5 {[%emt 0:05:57]} 24. h4 {[%emt 0:06:39]} f5 {[%emt 0:05:50]} 25. gxf5 {[%emt 0:02:26]} gxf5 {[%emt 0:00:06]} 26. e4 {[%emt 0:04:20]} f4 {[%emt 0:06:49]} 27. Nf5 {[%emt 0:00:07]} Rxf5 {[%emt 0:00:04]} 28. exf5 {[%emt 0:00:06]} Bc4 {[%emt 0:00:54]} 29. Rd2 {[%emt 0:01:05]} Qf7 {[%emt 0:00:11]} 30. Re4 {[%emt 0:00:51]} Bb5 {[%emt 0:00:17]} 31. Rg2 {[%emt 0:03:19]} Qxf5 {[%emt 0:00:30]} 32. Kg1 {[%emt 0:07:23]} Bf6 {[%emt 0:00:13]} 33. Qe1 {[%emt 0:01:37]} Bd3 {[%emt 0:04:27]} 34. b5 {[%emt 0:01:11]} axb5 {[%emt 0:00:45]} 35. Rb4 {[%emt 0:00:20]} Bc4 {[%emt 0:00:16]} 36. Qe4 {[%emt 0:00:42]} Qxe4 {[%emt 0:00:16]} 37. fxe4 {[%emt 0:00:02]} Bxh4 {[%emt 0:00:28]} 0-1

[Event "EYCC 2017"]
[Site "Mamaia"]
[Date "2017.09.08"]
[Round "4"]
[White "Gueci, Tea"]
[Black "Dwilewicz, Katarzyna"]
[Result "1/2-1/2"]
[ECO "C77"]
[WhiteElo "2181"]
[BlackElo "1884"]
[Annotator "NA"]
[PlyCount "70"]
[EventDate "2017.??.??"]
[EventType "swiss"]
[EventCountry "ROU"]
[SourceTitle "playchess.com"]
[Source "ChessBase"]
[SourceQuality "1"]
[TimeControl "40/5400+30:1800+30"]

1. e4 {[%emt 0:00:00]} e5 {[%emt 0:00:07]} 2. Nf3 {[%emt 0:00:00]} Nc6 {[%emt 0:00:05]} 3. Bb5 {[%emt 0:00:00]} a6 {[%emt 0:00:04]} 4. Ba4 {[%emt 0:00:00]} Nf6 {[%emt 0:00:06]} 5. d3 {[%emt 0:00:00]} d6 {[%emt 0:00:46]} 6. O-O {[%emt 0:00:00]} b5 {[%emt 0:04:12]} 7. Bb3 {[%emt 0:00:01]} Na5 {[%emt 0:00:12]} 8. d4 {[%emt 0:16:16]} Nxb3 {[%emt 0:11:36]} 9. axb3 {[%emt 0:00:09]} Bb7 {[%emt 0:06:23]} 10. dxe5 {[%emt 0:04:09]} dxe5 {[%emt 0:02:35]} 11. Qe2 {[%emt 0:00:30]} Bd6 {[%emt 0:01:49]} 12. Bg5 {[%emt 0:01:58]} h6 {[%emt 0:03:24]} 13. Bh4 {[%emt 0:01:00]} Qe7 {[%emt 0:02:46]} 14. Nbd2 {[%emt 0:07:00]} c5 {[%emt 0:07:22]} 15. h3 {[%emt 0:03:43]} g5 {[%emt 0:05:26]} 16. Bg3 {[%emt 0:02:06]} Rg8 {[%emt 0:02:04]} 17. c4 {[%emt 0:02:58]} b4 {[%emt 0:00:45]} 18. Ne1 {[%emt 0:01:27]} g4 {[%emt 0:05:01]} 19. h4 {[%emt 0:16:49]} Nh5 {[%emt 0:07:54]} 20. Nd3 {[%emt 0:00:30]} Nf4 {[%emt 0:06:01]} 21. Qe3 {[%emt 0:02:03]} O-O-O {[%emt 0:02:10]} 22. Nxf4 {[%emt 0:05:34]} exf4 {[%emt 0:00:14]} 23. Bxf4 {[%emt 0:00:02]} Bxf4 {[%emt 0:01:19]} 24. Qxf4 {[%emt 0:00:02]} Rxd2 {[%emt 0:01:17]} 25. Qxd2 {[%emt 0:02:50]} Qxe4 {[%emt 0:00:06]} 26. f3 {[%emt 0:00:45]} gxf3 {[%emt 0:00:13]} 27. Rf2 {[%emt 0:00:23]} Qxh4 {[%emt 0:04:07]} 28. Qd6 {[%emt 0:06:19]} fxg2 {[%emt 0:09:08]} 29. Qxc5+ {[%emt 0:03:21]} Kb8 {[%emt 0:00:05]} 30. Qd6+ {[%emt 0:00:58]} Ka8 {[%emt 0:04:06]} 31. Rxa6+ {[%emt 0:02:52]} Bxa6 {[%emt 0:00:04]} 32. Qxa6+ {[%emt 0:00:05]} Kb8 {[%emt 0:00:01]} 33. Qd6+ {[%emt 0:04:18]} Ka8 {[%emt 0:00:45]} 34. Qc6+ {[%emt 0:01:33]} Kb8 {[%emt 0:00:14]} 35. Qb5+ {[%emt 0:01:17]} Kc8 {[%emt 0:01:31]} 1/2-1/2

[Event "EYCC 2017"]
[Site "Mamaia"]
[Date "2017.09.08"]
[Round "4"]
[White "Volovich, Vasily"]
[Black "Kucuksari, Kaan"]
[Result "0-1"]
[ECO "B10"]
[WhiteElo "2166"]
[BlackElo "2319"]
[Annotator "NA"]
[PlyCount "92"]
[EventDate "2017.??.??"]
[EventType "swiss"]
[EventCountry "ROU"]
[SourceTitle "playchess.com"]
[Source "ChessBase"]
[SourceQuality "1"]
[TimeControl "40/5400+30:1800+30"]

1. e4 {[%emt 0:00:25]} c6 {[%emt 0:00:15]} 2. Nf3 {[%emt 0:00:53]} d5 {[%emt 0:00:08]} 3. Nc3 {[%emt 0:00:23]} Nf6 {[%emt 0:00:08]} 4. e5 {[%emt 0:00:40]} Ne4 {[%emt 0:00:09]} 5. Ne2 {[%emt 0:00:48]} Qb6 {[%emt 0:00:12]} 6. d4 {[%emt 0:03:47]} e6 {[%emt 0:00:33]} 7. Nfg1 {[%emt 0:17:06]} f6 {[%emt 0:02:14]} 8. f3 {[%emt 0:02:34]} Ng5 {[%emt 0:00:05]} 9. h4 {[%emt 0:03:02]} Nf7 {[%emt 0:00:21]} 10. f4 {[%emt 0:00:30]} c5 {[%emt 0:14:17]} 11. c3 {[%emt 0:03:26]} Nc6 {[%emt 0:01:15]} 12. Nf3 {[%emt 0:01:29]} Bd7 {[%emt 0:05:39]} 13. g4 {[%emt 0:09:19]} O-O-O {[%emt 0:12:18]} 14. Bh3 {[%emt 0:07:43]} Be7 {[%emt 0:04:46]} 15. Qb3 {[%emt 0:07:05]} Qa6 {[%emt 0:14:20]} 16. Qc2 {[%emt 0:04:46]} cxd4 {[%emt 0:07:02]} 17. cxd4 {[%emt 0:01:04]} Kb8 {[%emt 0:00:37]} 18. O-O {[%emt 0:07:03]} Nb4 {[%emt 0:06:02]} 19. Qd1 {[%emt 0:00:42]} Ba4 {[%emt 0:02:55]} 20. b3 {[%emt 0:00:52]} Bxb3 {[%emt 0:14:49]} 21. Qxb3 {[%emt 0:00:56]} Qxe2 {[%emt 0:00:02]} 22. Bd2 {[%emt 0:04:49]} Qc4 {[%emt 0:05:43]} 23. f5 {[%emt 0:05:37]} exf5 {[%emt 0:01:28]} 24. gxf5 {[%emt 0:00:29]} Nc6 {[%emt 0:01:30]} 25. Qxc4 {[%emt 0:02:00]} dxc4 {[%emt 0:00:02]} 26. Bf4 {[%emt 0:00:26]} Ka8 {[%emt 0:00:31]} 27. Rfd1 {[%emt 0:01:28]} Nxd4 {[%emt 0:02:36]} 28. Nxd4 {[%emt 0:01:49]} fxe5 {[%emt 0:00:02]} 29. Ne6 {[%emt 0:00:30]} exf4 {[%emt 0:02:44]} 30. Nxd8 {[%emt 0:00:20]} Rxd8 {[%emt 0:00:02]} 31. Rxd8+ {[%emt 0:00:17]} Bxd8 {[%emt 0:01:02]} 32. Rc1 {[%emt 0:02:54]} Ne5 {[%emt 0:02:06]} 33. Bf1 {[%emt 0:01:32]} b5 {[%emt 0:00:25]} 34. a4 {[%emt 0:01:20]} Bb6+ {[%emt 0:00:05]} 35. Kg2 {[%emt 0:00:24]} Be3 {[%emt 0:00:03]} 36. Rc2 {[%emt 0:00:52]} Nd3 {[%emt 0:01:24]} 37. Bxd3 {[%emt 0:01:13]} cxd3 {[%emt 0:00:01]} 38. Rc8+ {[%emt 0:00:09]} Kb7 {[%emt 0:00:01]} 39. Rd8 {[%emt 0:00:10]} bxa4 {[%emt 0:01:24]} 40. Rxd3 {[%emt 0:00:00]} Kc6 {[%emt 0:00:01]} 41. h5 {[%emt 0:01:33]} h6 {[%emt 0:07:52]} 42. Kf3 {[%emt 0:00:52]} Kb5 {[%emt 0:01:31]} 43. Ke2 {[%emt 0:05:00]} Kb4 {[%emt 0:11:03]} 44. Kd1 {[%emt 0:01:20]} a3 {[%emt 0:03:16]} 45. Kc2 {[%emt 0:00:19]} a2 {[%emt 0:00:06]} 46. Rb3+ {[%emt 0:01:48]} Ka4 {[%emt 0:02:46]} 0-1